Cogmind - Beta 15 @@@ ROGUE MODE // 2025.05.09 @ 13:31:23 Player: Quartz Result: Destroyed by 75-JB5(R) with Subdweller Beam Cannon Performance ------------- Evolutions (0) 0 Regions Visited (2) 400 Robots Destroyed (21) 105 Value Destroyed (515) 515 Prototype IDs (0) 0 Alien Tech Used (0) 0 Bonus (0) 0 TOTAL SCORE: 1020 Bonus ------- None Cogmind --------- Core Integrity 0/250 Matter 264/300 Energy 245/265 System Corruption 0% Temperature Cool (9) Movement Rolling (155) Ox5 Location -10/Subcaves Parts ------- > --- POWER (1) -------- Improved Ion Engine > --- PROPULSION (2) --- Wheel > --- UTILITY (2) ------ High-capacity Storage Unit Signal Interpreter > --- WEAPON (2) ------- Spread Laser Light Assault Rifle > --- INVENTORY (20) --- Improved Ion Engine Improved Ion Engine Improved Ion Engine Improved Heat Sink Huge Storage Unit Utility Shielding Spread Laser Spread Laser Grenade Launcher Peak State ------------ > --- POWER ------------ Light Nuclear Core > --- PROPULSION ------- Aluminum Leg Aluminum Leg > --- UTILITY ---------- Huge Storage Unit Signal Interpreter > --- WEAPON ----------- Spread Laser Assault Rifle > --- INVENTORY -------- Improved Heat Sink Utility Shielding Medium Laser Spread Laser Spread Laser Spread Laser Light Assault Rifle Grenade Launcher [Rating: 11] Favorites ----------- Power Improved Ion Engine Engine Improved Ion Engine Power Core Light Nuclear Core Propulsion Aluminum Leg Leg Aluminum Leg Wheel Wheel Utility Signal Interpreter Storage Huge Storage Unit Processor Signal Interpreter Weapon Assault Rifle Energy Gun Medium Laser Ballistic Gun Assault Rifle Build | -11 -10 -10 ------- Run | Yrd Mat Sub Slots Evolved . | . . . Power . | . . . Propulsion . | . . . Utility . | . . . Weapon . | . . . Parts Attached 20 | 6 10 4 Power 4 | 1 3 . Engine 3 | 1 2 . Core 1 | . 1 . Reactor . | . . . Propulsion 5 | 2 3 . Treads . | . . . Leg 4 | 2 2 . Wheel 1 | . 1 . Hover . | . . . Flight . | . . . Utility 4 | 1 3 . Device . | . . . Storage 3 | 1 2 . Processor 1 | . 1 . Hackware . | . . . Protection . | . . . Artifact . | . . . Weapon 7 | 2 1 4 Energy Gun 4 | 1 1 2 Energy Cannon . | . . . Ballistic Gun 3 | 1 . 2 Ballistic Cannon . | . . . Launcher . | . . . Special Weapon . | . . . Impact Weapon . | . . . Slashing Weapon . | . . . Piercing Weapon . | . . . Special Melee Weapon . | . . . Unidentified Prototypes . | . . . Parts Lost 8 | . 5 3 Power 2 | . 2 . Propulsion 3 | . 3 . Utility . | . . . Weapon 3 | . . 3 Highest Loss Streak 2 | . 2 2 To Critical Strikes . | . . . Average Backups 5 | . 5 11 Power 1 | . . 3 Propulsion . | . . . Utility 1 | . 1 3 Weapon 2 | . 2 5 Tool/Special . | . . . Unused Backups 7 | . . 7 Power 3 | . . 3 Propulsion . | . . . Utility 2 | . . 2 Weapon 2 | . . 2 Tool/Special . | . . . Average Slot Usage (%) 92 | . 94 81 Engine 10 | . 10 14 Core 3 | . 3 . Leg 22 | . 26 . Wheel 1 | . . 14 Storage 14 | . 14 14 Processor 11 | . 11 14 Energy Gun 14 | . 14 14 Ballistic Gun 13 | . 14 10 Peak Build Rating 11 | 6 11 10 Average Rating 8 | 3 8 9 On Entrance 5 | . 6 10 Naked Turns . | . . . Heaviest Build 90 | 12 90 52 Greatest Support 20 | 20 20 10 Greatest Overweight (x) 8 | . 8 5 Average Overweight (x) 3 | . 3 4 Largest Inventory Capacity 25 | 8 25 20 Average Capacity 21 | 6 22 20 Most Carried 13 | 4 13 12 Average Carried 5 | . 5 11 Final Capacity 20 | 8 20 20 Final Carried 12 | . 12 9 Class Distribution -------------------- 100% | Mutant Dominant Class ---------------- Mutant | -10/Materials Mutant | -10/Subcaves Resources | -11 -10 -10 ----------- Run | Yrd Mat Sub Matter Collected 480 | 174 289 17 Remotely . | . . . Salvage Created 546 | . 479 67 Parts 35 | . 26 9 Haulers Intercepted 1 | . 1 . Recyclers Shooed 1 | . 1 . Parts Field Recycled . | . . . Retrieved Matter . | . . . Parts Self-Destructed 7 | . . 7 Prevented . | . . . Kills | -11 -10 -10 ------- Run | Yrd Mat Sub Combat Hostiles Destroyed 17 | . 14 3 Guns 17 | . 14 3 Classes Destroyed 6 | . 5 1 Hauler 1 | . 1 . Operator 2 | . 2 . Watcher 1 | . 1 . Swarmer 6 | . 6 . Grunt 8 | . 8 . Subdweller 3 | . . 3 Best Kill Streak 3 | . 3 2 Combat Bots Only 3 | . 3 2 Max Kills in Single Turn 1 | . 1 1 Gunslinging . | . . . Exploded . | . . . Melee . | . . . Uniques/NPCs Destroyed . | . . . Combat | -11 -10 -10 -------- Run | Yrd Mat Sub Hostile Shots Fired 117 | . 89 28 Missed 29 | . 17 12 Hits 88 | . 72 16 Projectile 88 | . 72 16 Critical Strikes 1 | . . 1 Damage Taken 1081 | . 720 361 Core 254 | . 157 97 Absorbed by Shields . | . . . Core Remaining (%) 100 | 100 . . Volleys Fired 74 | . 61 13 Largest 2 | . 2 2 Hottest 85 | . 85 85 Shots Fired 142 | . 120 22 Gun 142 | . 120 22 Cannon . | . . . Launcher . | . . . Special . | . . . Kinetic 71 | . 61 10 Thermal 71 | . 59 12 Explosive . | . . . Electromagnetic . | . . . Robot Hit Streak 12 | . 9 12 Robot Miss Streak 7 | . 7 2 Penetration Max . | . . . Secondary Targets 4 | . 2 2 Max Gunslinging Chain 1 | . 1 1 Shots Hit Robots 102 | . 82 20 Core Hits 56 | 1 35 20 Critical Kills 1 | . 1 . Critical Parts Destroyed 1 | . 1 . Critical Strikes 4 | . 4 . Burn 2 | . 2 . Destroy 2 | . 2 . Melee Attacks . | . . . Impact . | . . . Slashing . | . . . Piercing . | . . . Sneak Attacks . | . . . Combat Hostiles . | . . . Follow-up Attacks . | . . . Damage Inflicted 1298 | 21 976 301 Guns 1255 | . 954 301 Cannons . | . . . Explosions . | . . . Melee . | . . . Ramming 43 | 21 22 . Kinetic 536 | . 455 81 Thermal 719 | . 499 220 Explosive . | . . . Electromagnetic . | . . . Impact . | . . . Slashing . | . . . Piercing . | . . . Highest Corruption . | . . . Average Corruption . | . . . Corruption Purged . | . . . Corruption Blocked . | . . . Overload Shots . | . . . Overflow Damage . | . . . Projectiles . | . . . Explosions . | . . . Melee . | . . . Knockbacks . | . . . Impact . | . . . Kinetic . | . . . Secondary . | . . . Self-Inflicted Damage . | . . . Shots . | . . . Rammed . | . . . Targets Rammed 15 | 9 6 . Kicked 15 | 9 6 . Crushed . | . . . Highest Temperature 126 | . 126 18 Average Temperature 42 | . 44 7 Received Heat Transfer 354 | . 249 105 Siege Activations . | . . . Martial Activations . | . . . Shielding Activations . | . . . Robots Disrupted . | . . . Combat Hostiles . | . . . Robots Corrupted . | . . . Combat Hostiles . | . . . Parts Fried . | . . . Impact Corruptions . | . . . Robots Melted . | . . . Combat Hostiles . | . . . Parts Melted 1 | . 1 . Heat Transferred 1722 | . 1452 270 Parts Sabotaged . | . . . Parts Stolen . | . . . Parts Stripped . | . . . Power Chain Reactions . | . . . Alert | -11 -10 -10 ------- Run | Yrd Mat Sub Maximum Alert Level . | . . . Low Security (%) 100 | 100 100 . Level 1 . | . . . Level 2 . | . . . Level 3 . | . . . Level 4 . | . . . Level 5 . | . . . High Security . | . . . Max Security . | . . . Peak Influence 91 | . 91 . Initial . | . . . Average 23 | . 24 . Influence Increases 427 | . 427 . Destroy 0b10 Robot/C 280 | . 280 . Destroy 0b10 Robot/NC 20 | . 20 . Destroy Leader 64 | . 64 . Successful Hack 18 | . 18 . Lose Combat Pursuer 45 | . 45 . Influence Decreases 427 | . 373 54 Entered New Map 26 | . . 26 Time Decay 381 | . 353 28 Lost Part 20 | . 20 . Squads Dispatched 3 | . 3 . Investigation . | . . . Extermination . | . . . Reinforcement 3 | . 3 . Assault . | . . . Garrison . | . . . Intercept . | . . . Searches Triggered . | . . . Construction Impeded . | . . . Haulers Reinforced . | . . . Active Scanning Responses . | . . . Cargo Convoy Interrupts . | . . . Stealth | -11 -10 -10 --------- Run | Yrd Mat Sub Distress Signals 3 | . 3 . Communications Jammed . | . . . Distress Signals . | . . . Times Spotted 32 | . 27 5 Peak Tracking Total 5 | . 5 4 Tactical Retreats 2 | . 2 . Traps | -11 -10 -10 ------- Run | Yrd Mat Sub Traps Triggered . | . . . Indirectly . | . . . Trap Hack Attempts . | . . . Triggered . | . . . Disarmed . | . . . Reprogrammed . | . . . Reused . | . . . Traps Extracted . | . . . Installed . | . . . Triggered . | . . . Machines | -11 -10 -10 ---------- Run | Yrd Mat Sub Machines Disabled . | . . . Max in Single Turn . | . . . Machines Repaired . | . . . Machines Dismantled . | . . . Machines Sabotaged . | . . . Overloaded Fab Kills . | . . . Hacking | -11 -10 -10 --------- Run | Yrd Mat Sub Machines Accessed 3 | . 3 . Terminals 3 | . 3 . Fabricators . | . . . Repair Stations . | . . . Recycling Units . | . . . Scanalyzers . | . . . Garrison Access . | . . . Total Hacks 6 | . 6 . Successful 4 | . 4 . Failed 2 | . 2 . Catastrophic . | . . . Database Lockouts . | . . . Manual 6 | . 6 . Terminals 6 | . 6 . Fabricators . | . . . Repair Stations . | . . . Recycling Units . | . . . Scanalyzers . | . . . Garrison Access . | . . . Terminal Hacks 1 | . 1 . Terminal Index 1 | . 1 . Fabricator Hacks . | . . . Repair Station Hacks . | . . . Recycling Unit Hacks . | . . . Scanalyzer . | . . . Garrison Access Hacks . | . . . Unauthorized Hacks 3 | . 3 . Terminals 3 | . 3 . Botnet 3 | . 3 . Fabricators . | . . . Repair Stations . | . . . Recycling Units . | . . . Scanalyzers . | . . . Garrison Access . | . . . Data Cores Recovered . | . . . Used . | . . . Hacking Detections 2 | . 2 . Full Trace Events . | . . . Feedback Events . | . . . Feedback Blocked . | . . . Robot Schematics Acquired . | . . . Robots Built . | . . . Authchips . | . . . Time . | . . . Total Robot Build Rating . | . . . Part Schematics Acquired . | . . . Parts Built . | . . . Authchips . | . . . Time . | . . . Total Part Build Rating . | . . . Parts Repaired . | . . . Time . | . . . Parts Recycled . | . . . Recycled Matter . | . . . Retrieved Matter . | . . . Retrieved Components . | . . . Parts Scanalyzed . | . . . Part Schematics Acquired . | . . . Parts Damaged . | . . . Bothacking | -11 -10 -10 ------------ Run | Yrd Mat Sub Used RIF Installer . | . . . Robots Hacked . | . . . Non-combat . | . . . Combat . | . . . Robot Hacks Applied . | . . . Relay Couplers Released . | . . . Fabnet Peak Effective % . | . . . Robots Rewired . | . . . Allies Hacked . | . . . Hacks Repelled . | . . . Allies | -11 -10 -10 -------- Run | Yrd Mat Sub Total Allies . | . . . Largest Group . | . . . Highest-Rated Group . | . . . Highest-Rated Ally . | . . . Total Orders . | . . . Ally Attacks . | . . . Total Damage . | . . . Kills . | . . . Allies Corrupted . | . . . Allies Melted . | . . . Intel | -11 -10 -10 ------- Run | Yrd Mat Sub Active Infowar (turns) . | . . . Robot Analysis Total . | . . . Derelict Logs Recovered . | . . . Drone Launches . | . . . Drone Recoveries . | . . . Exploration | -11 -10 -10 ------------- Run | Yrd Mat Sub Turns Passed 2789 | 116 2322 351 Spaces Moved 861 | 63 590 208 Core 18 | 18 . . Treads . | . . . Legs 634 | 45 589 . Wheels 209 | . 1 208 Hover . | . . . Flight . | . . . Fastest Speed 50 | 50 120 140 Average Speed 285 | 100 352 150 Slowest Speed 680 | 120 680 155 Overloaded Moves . | . . . Propulsion Burnouts . | . . . Robots Hopped . | . . . Potential Cave-ins . | . . . Cave-ins Triggered . | . . . Exploration Rate (%) 32 | 6 75 15 Regions Visited 2 Branch Regions 1 Pre-discovered Areas . | . . . Known Exits Taken 1 | . 1 . Unknown Exits Taken 1 | 1 . . Scrap Searched 3 | . . 3 Spaces Dug . | . . . Terrain Destroyed . | . . . Melee . | . . . Projectile . | . . . AOE . | . . . Terrain Rammed . | . . . Walls Destroyed . | . . . Machines Disabled . | . . . Actions | -11 -10 -10 --------- Run | Yrd Mat Sub Total 1030 | 114 691 225 Wait 31 | 31 . . Move 859 | 62 589 208 Hop . | . . . Pick Up 27 | 6 21 . Fast Attach . | . . . Attach 16 | 6 7 3 Detach . | . . . Swap 4 | . 3 1 Drop 4 | . 4 . Fire 74 | . 61 13 Melee . | . . . Ram . | . . . Kick 15 | 9 6 . Crush . | . . . Escape Stasis . | . . . Rewire . | . . . Trap . | . . . Miscellaneous . | . . . Route ------- -11/Scrapyard -10/Materials (discovered 4 exits: *Mat x2 / [*Min] / *Sub) -10/Subcaves History --------- Turn | Location | Event 35 | -11/Scrapyard | Discovered new exit (range 16) 117 | -11/Scrapyard | Entered Materials 315 | -10/Materials | Build established: Mutant 473 | -10/Materials | Discovered new exit (range 15) 623 | -10/Materials | Identified exit to Materials 1059 | -10/Materials | Discovered exit to Materials (range 16) 1824 | -10/Materials | Discovered new exit (range 10) 1932 | -10/Materials | Core integrity fell below 50% 2048 | -10/Materials | Discovered new exit (range 7) 2428 | -10/Materials | Identified exit to Subcaves 2439 | -10/Materials | Entered Subcaves 2604 | -10/Subcaves | A swath of the cavern ceiling suddenly collapsed 2789 | -10/Subcaves | Core integrity fell below 20% 2790 | -10/Subcaves | Destroyed by 75-JB5(R) with Subdweller Beam Cannon Last Messages --------------- 02668_ Assault Rifle destroyed. 02670_ J6-84J(R) destroyed. 02672_ Acquired 7 matter. 02678_ Searching scrap... 02678_ Found Sub. Beam Cannon. 02678_ Found Flamer. 02678_ Found 44 Matter. 02679_ Searching scrap... 02679_ Found Sub. Power Source. 02679_ Found 38 Matter. 02681_ Searching scrap... 02681_ Found Shrapnel Trap. 02681_ Found 35 Matter. 02693_ Subatomizers dissect the Flamer. 02773_ Lgt. Assault Rifle destroyed. 02777_ 27-1HG(R) destroyed. 02777_ Switching to secondary target: 75-JB5(R). 02785_ H3-F7Y(R) destroyed. 02785_ Switching to secondary target: 75-JB5(R). 02786_ Spread Laser destroyed. Map ----- +----------------------------------------------------+ | ?????????????????# ####??????????????????? | | ???????????###??## #?????????????????????? | | ???????????#%#### ##????????????????????? | | ???????????#&"# #" ####?????????????????? | | ???????????#*%#%& #?????????????????? | | ???????????#"]#|#" ##?????????????????? | | ???????????##&%"## #??????????????????? | | ????????????###### #??????????????????? | | ?????????#?## ## ####??????????????????? | | ? #### # ##?????????????????????? | | ??# #??????????????????????? | | ??# ## #??????????????????????? | | ???? ????## #??????????????????????? | | ???????????##### #??????????????????????? | | ???? ????### ## ##??????????????????????? | | ?? ### ##??????????????????????? | | ? #??????????????????????? | | ??# #???######?????????????? | | ??# # # ###### #?????????????? | | ??#??????# ## #?????????????? | | ?????????####### #??????????????? | | ???????????????## #??????????????? | | ????????????????# ###??????????????? | | ????????????????# ### ####?????????????? | | ????????????????## ##?# && #?????????????? | | ?????????????????######*&@&##?????????????? | | ?????????? &%&%!##?????????????? | | ?????????????# #&& #?????????????? | | ?????????????# ### ### RR#?????????????? | | ????????????????## ### #?????????????? | | ??????????????# ##?????????????? | | ?????????????# #??????????????? | | ?????????????##### #??????????????? | | ?????????????????## ##??????????????? | | ??????????????????# ##???????????????? | | ??????????????????# ##????????????????? | | ?????????????????# ??????????????????? | | ?????????????????# ??????????????????? | | ?????????????????# ??????????????????? | | ?????????????????# # ??????????????????? | | ?????????????????# ## ??????????????????? | | ?????????????????# ??# ??????????????????? | | ?????????????????# ?? ???????????????????? | | ????????????????? ??? ???????????????????? | | ????????????????????? ???????????????????? | | ?????????????????????? ???????????????????? | | ??????????????????????????????????????????? | | ??????????????????????????????????????????? | | ??????????????????????????????????????????? | | ??????????????????????????????????????????? | +----------------------------------------------------+ Best States ------------- Heat Dissipation 25 Energy Generation 14 Energy Capacity 265 Matter Stores 300 Matter Capacity 300 Sight Range 16 Terrain Scan Density 10 Evasion (%) 55 Item Schematics ----------------- None Robot Schematics ------------------ None Fabricated ------------ Nothing Repaired ---------- Nothing Alien Tech Used ----------------- None Achievements -------------- None Challenges ------------ None Game ------ Seed NovaShadeNanovents Manual? 0 Play Time 00:12:37 Cumulative 37.5 hours Start 2025.05.09 @ 13:20:29 End 2025.05.09 @ 13:31:23 Sessions 1 Manual Loads 0 Difficulty Rogue Special Mode None Game No. 61 Rogue 61 Adventurer 0 Explorer 0 Win Type - Total 0 Types 0/0/0/0/0/0/0/0/0/0 Lore% 16 Gallery% 25 Achievement% 25 Wizard Run 0 Options --------- Layout 2 ASCII 0 Keyboard 0 Movement Arrows Keybinds 0 Fullscreen 1 Font 24/Smallcaps Map View 50x44 Zoom Use 0% Tactical HUD 1 Map Filters NONE Filters NONE Steam 1 RUN: 6a215c38-7ed2-4c76-abae-5e39efd01d00